bitfinex/quotes_ETHUSD_20260310
["timestamp","ask_amount","ask_price","bid_price","bid_amount"]
[1773122330623,1.22383943,2044.5,2044.1,0.4796983]
[1773122330825,0.001,2044.5,2044.1,0.4796983]
[1773122331656,0.47400415,2044.5,2044.2,1.22297231]
[1773122331825,0.47400415,2044.5,2044.2,1.72324067]
[1773122332134,0.47400415,2044.5,2044.1,1.22298367]
[1773122332627,0.47400415,2044.5,2044.1,1.72325203]
[1773122334224,0.47300415,2044.4,2044.1,0.50026836]
[1773122337114,0.47300415,2044.4,2044.1,1.72329455]
[1773122338026,0.47300415,2044.4,2044.1,0.50026836]
[1773122339043,0.47300415,2044.4,2044.1,1.72329744]
[1773122339632,0.47300415,2044.4,2044.1,1.72330046]
[1773122340627,1.22379295,2044.5,2044.2,0.50026836]
[1773122340628,0.001,2044.5,2044.2,0.50026836]
[1773122341208,0.47300415,2044.6,2044.2,0.50026836]
[1773122341209,1.69564247,2044.8,2044.2,0.50026836]
[1773122341409,0.47300415,2044.7,2044.2,0.50026836]
[1773122342538,0.47300415,2044.7,2044.3,0.50136836]
[1773122342739,0.47300415,2044.9,2044.5,0.50026836]
[1773122342946,0.47300415,2045.0,2044.6,0.50026836]
[1773122343736,0.49938417,2044.7,2044.4,0.50485357]
[1773122345136,0.49938417,2044.7,2044.4,1.72769892]
[1773122345754,0.49938417,2044.7,2044.4,0.50485357]
[1773122347226,0.49938417,2044.5,2044.3,0.0011]
[1773122347426,0.49938417,2044.5,2044.1,0.50485357]
[1773122347626,0.49938417,2044.7,2044.1,0.50485357]
[1773122349252,1.22273052,2044.7,2044.1,1.72783831]
[1773122349457,0.49938417,2044.6,2044.1,1.72783831]
[1773122350562,0.49938417,2044.6,2044.1,0.50485357]
[1773122350762,0.49938417,2044.6,2044.1,1.72788129]
[1773122352558,0.49938417,2044.5,2044.1,1.72788129]
[1773122355061,0.49938417,2044.5,2044.3,0.001]
[1773122355849,1.72218227,2044.5,2044.3,0.001]
[1773122356870,0.49938417,2044.5,2044.3,0.001]
[1773122359346,1.72222356,2044.5,2044.3,0.001]
[1773122359967,0.49938417,2044.5,2044.3,0.001]
[1773122360367,1.72220012,2044.5,2044.3,0.001]
[1773122362680,2.38055778,2044.8,2044.3,0.50585357]
[1773122362681,0.002,2044.8,2044.3,0.50585357]
[1773122362878,1.22461564,2044.8,2044.3,0.50585357]
[1773122363449,1.72399981,2044.8,2044.3,0.50585357]
[1773122363655,0.49938417,2044.7,2044.3,0.50585357]
[1773122365797,0.002,2044.8,2044.5,0.50485357]
[1773122366973,0.50138417,2044.8,2044.5,0.50485357]
[1773122367167,0.50138417,2044.8,2044.5,0.50595357]
[1773122367846,0.50138417,2044.8,2044.5,1.72874087]
[1773122368047,0.50138417,2044.8,2044.5,0.50595357]
[1773122368754,0.50138417,2044.8,2044.5,1.72873679]
[1773122369549,0.50138417,2044.8,2044.5,0.50595357]
[1773122370467,0.50138417,2044.8,2044.5,1.72874089]
[1773122370673,0.50138417,2044.8,2044.5,0.50595357]
[1773122372274,0.50138417,2044.8,2044.5,1.72873859]
[1773122373448,0.002,2044.8,2044.6,0.48669503]
[1773122373745,0.45951897,2045.0,2044.6,0.48669503]
[1773122373746,0.002,2045.0,2044.6,0.48669503]
[1773122374741,0.002,2045.0,2044.7,0.48669503]
[1773122375843,0.45951897,2045.0,2044.6,1.22267737]
[1773122376043,0.45951897,2045.0,2044.6,1.7093724]
[1773122377969,0.45951897,2045.0,2044.7,0.48669503]
[1773122379978,0.45951897,2045.0,2044.7,1.71035459]
[1773122380177,0.002,2044.8,2044.7,1.71035459]
[1773122380888,0.002,2044.8,2044.7,0.48769503]
[1773122381088,0.002,2044.8,2044.7,1.71036828]
[1773122381891,0.002,2044.8,2044.7,0.48769503]
[1773122385390,0.002,2044.8,2044.7,1.71036828]
[1773122393092,0.45951897,2045.0,2044.8,0.47063903]
[1773122393093,0.002,2045.0,2044.8,0.47063903]
[1773122393994,0.002,2045.0,2044.9,0.47163903]
[1773122396496,0.002,2045.0,2044.9,1.6941927]
[1773122396909,0.001,2045.3,2045.1,0.47063903]
[1773122399101,0.001,2045.3,2045.1,1.69303615]
[1773122400489,0.001,2045.3,2045.2,0.47063903]
[1773122400870,0.002,2045.6,2045.2,0.47063903]
[1773122400871,0.49611579,2045.6,2045.2,0.47063903]
[1773122401074,0.49611579,2045.6,2045.3,1.6929536]
[1773122401395,0.49411579,2045.5,2044.9,1.69416961]
[1773122401597,0.49411579,2045.1,2044.6,1.69334154]
[1773122401974,0.49411579,2045.1,2044.7,1.22367317]
[1773122402170,0.49411579,2045.1,2044.7,0.001]
[1773122402585,0.49411579,2045.1,2044.7,1.22366151]
[1773122403600,0.50257279,2045.5,2045.0,0.95711954]
[1773122403897,0.002,2045.6,2044.7,1.22366151]
[1773122403898,0.50457279,2045.6,2045.1,0.47167282]
[1773122405089,0.50457279,2045.6,2045.2,1.69404715]
[1773122405412,0.50457279,2045.6,2045.3,0.47167282]
[1773122405977,0.002,2045.6,2045.3,0.47167282]
[1773122406175,0.50457279,2045.6,2045.3,0.47167282]
[1773122407189,0.50457279,2045.6,2045.3,1.69393616]
[1773122408004,0.002,2045.4,2045.3,1.69393616]
[1773122408608,0.002,2045.6,2045.4,0.47167282]
[1773122409491,0.002,2045.6,2045.5,1.22219506]
[1773122411307,0.002,2045.6,2045.4,1.69388185]
[1773122412911,0.50457279,2045.6,2045.4,1.22220903]
[1773122414914,0.50457279,2045.6,2045.2,1.22234023]
[1773122415612,0.50457279,2045.6,2045.3,0.47167282]
[1773122416883,0.50457279,2045.6,2045.4,1.22225481]
[1773122418017,0.002,2045.6,2045.4,1.22225481]
[1773122418224,0.002,2045.6,2045.5,0.47167282]
[1773122419998,0.95911954,2045.6,2044.9,0.001]
[1773122420324,0.50257279,2045.5,2044.9,1.22354958]
[1773122420529,0.50257279,2045.5,2044.9,1.6952224]
[1773122421403,0.50257279,2045.4,2044.9,1.6952224]
[1773122421805,0.50257279,2045.4,2045.0,0.47167282]
[1773122422242,0.50457279,2045.6,2045.0,0.47167282]
[1773122424035,0.50457279,2045.6,2045.1,1.22243411]
[1773122424239,0.50457279,2045.6,2045.1,1.69410693]
[1773122424613,0.50457279,2045.6,2045.2,0.47167282]
[1773122426328,0.50457279,2045.6,2045.2,1.69402384]
[1773122426933,0.002,2045.6,2045.3,0.47167282]
[1773122427816,0.50457279,2045.6,2045.3,0.47167282]
[1773122429261,0.50457279,2045.6,2045.3,1.69396544]
[1773122429408,0.50457279,2045.6,2045.3,1.22229262]
[1773122430336,0.50457279,2045.6,2045.2,1.69400818]
[1773122431342,0.50457279,2045.6,2044.9,0.001]
[1773122431343,0.50257279,2045.3,2044.9,0.001]
[1773122432442,0.50257279,2045.3,2045.0,0.001]
[1773122432938,0.50257279,2045.3,2044.9,0.001]
[1773122433323,1.72492795,2045.3,2044.9,0.001]
[1773122433522,0.50157494,2045.2,2044.9,0.001]
[1773122436043,0.50157494,2045.1,2044.9,0.001]
[1773122436440,0.50157494,2044.9,2044.5,1.6820618]
[1773122438647,0.95711954,2044.8,2044.5,0.0011]
[1773122438828,0.95711954,2044.8,2044.3,0.45919446]
[1773122438829,0.50157494,2044.5,2044.3,0.001]
[1773122439818,1.45926805,2044.5,2044.2,0.45919446]
[1773122440051,0.50157494,2044.4,2044.0,0.45929446]
[1773122440345,0.50157494,2044.4,2044.0,1.68238185]
[1773122440521,0.50157494,2044.4,2044.0,0.0011]
[1773122441748,0.50010802,2044.4,2044.0,0.0011]
[1773122442048,0.50157494,2044.2,2044.0,0.0011]
[1773122446621,0.50157494,2044.3,2044.0,0.0011]
[1773122446827,0.50157494,2044.3,2044.0,0.45929446]
[1773122447131,0.95769311,2044.3,2044.0,0.0011]
[1773122447448,0.50157494,2044.1,2043.8,0.0011]
[1773122447652,0.50157494,2043.8,2043.6,0.0011]
[1773122448420,0.50157494,2043.8,2043.4,0.45929446]
[1773122448624,0.50157494,2043.8,2043.4,1.68273214]
[1773122449128,0.50157494,2043.8,2043.4,0.45929446]
[1773122449334,0.50157494,2043.7,2043.4,0.45929446]
[1773122449553,0.50157494,2043.7,2043.4,1.68274496]
[1773122449853,0.50157494,2043.7,2043.4,0.0011]
[1773122450424,0.50157494,2043.7,2043.3,0.0011]
[1773122450425,0.50157494,2043.6,2043.3,0.0011]
[1773122451146,0.50157494,2043.5,2043.1,0.45929446]
[1773122451349,0.50157494,2043.5,2043.1,1.22473032]
[1773122452040,0.50157494,2043.5,2043.1,0.0011]
[1773122452851,0.50157494,2043.3,2043.1,0.0011]
[1773122454259,0.46572691,2043.7,2043.1,0.45796138]
[1773122454439,0.46572691,2043.9,2043.1,0.45796138]
[1773122456373,0.46572691,2043.7,2043.3,0.45686138]
[1773122457042,0.46572691,2043.7,2043.3,0.45796138]
[1773122457453,0.46672691,2043.7,2043.3,0.45796138]
[1773122458549,0.46672691,2043.7,2043.3,1.68143152]
[1773122460451,0.46672691,2043.7,2043.3,0.45796138]
[1773122460657,0.46672691,2043.7,2043.3,1.68142819]
[1773122462387,0.46672691,2043.7,2043.3,1.22456681]
[1773122462550,0.46672691,2043.7,2043.4,0.45686138]
[1773122466185,0.46672691,2043.7,2043.4,1.68030321]
[1773122467490,0.001,2043.7,2043.5,0.45347663]
[1773122468357,0.001,2043.7,2043.5,1.67685988]
[1773122469154,0.001,2043.7,2043.5,1.67795988]
[1773122469754,0.001,2043.7,2043.6,0.45347663]
[1773122470580,0.001,2043.7,2043.6,1.676808]
[1773122472084,0.45624463,2044.1,2043.7,0.45347663]
[1773122472552,0.45624463,2044.1,2043.8,1.22321166]
[1773122473677,0.45624463,2044.1,2043.8,0.45347663]
[1773122474072,0.45624463,2044.1,2043.7,0.31147663]
[1773122475384,0.45624463,2044.1,2043.7,1.53469401]
[1773122475608,0.45624463,2043.8,2043.3,0.0011]
[1773122478788,0.45624463,2043.7,2043.3,1.22460644]
[1773122479088,0.45624463,2043.7,2043.4,0.45347663]
[1773122479390,1.22317437,2043.9,2043.4,0.45347663]
[1773122479693,0.45624463,2043.8,2043.4,0.45347663]
[1773122480486,0.45624463,2044.0,2043.4,0.45347663]
[1773122481389,0.45624463,2044.0,2043.6,0.45347663]
[1773122481995,0.45624463,2043.9,2043.6,0.45347663]
[1773122482159,0.45624463,2043.9,2043.5,1.22449124]
[1773122482354,0.45624463,2043.9,2043.5,1.67796787]
[1773122484293,0.45624463,2043.8,2043.5,0.45457663]
[1773122484587,0.45624463,2043.9,2043.5,0.45457663]
[1773122486895,1.6793998,2043.9,2043.5,0.45457663]
[1773122487098,0.45624463,2043.8,2043.5,0.0011]
[1773122488115,2.18084828,2043.9,2043.3,0.0011]
[1773122488116,0.45624463,2043.6,2043.3,0.0011]
[1773122488296,0.45624463,2043.6,2043.1,0.0011]
[1773122488297,0.45624463,2043.4,2043.1,0.0011]
[1773122490287,1.67971862,2043.4,2043.1,0.0011]
[1773122490492,0.45624463,2043.3,2043.1,0.0011]
[1773122492403,0.45624463,2043.1,2043.0,0.0011]
[1773122493120,0.45624463,2043.3,2043.0,0.0011]
[1773122493409,1.67951614,2043.7,2043.0,0.45457663]
[1773122493592,0.45569711,2043.6,2043.0,0.45457663]
[1773122493794,0.45569711,2043.6,2043.3,0.0011]
[1773122494194,0.45669711,2043.6,2043.3,0.0011]
[1773122494585,1.680087,2043.6,2043.3,0.0011]
[1773122494905,1.22438989,2043.6,2043.3,0.0011]
[1773122495106,0.45569711,2043.5,2043.3,0.0011]
[1773122496886,1.22343427,2043.5,2043.3,0.0011]
[1773122497086,0.45569711,2043.4,2043.3,0.0011]
[1773122497305,0.45569711,2043.3,2043.0,0.0011]
[1773122498318,1.22343427,2043.5,2042.8,0.49359106]
[1773122498319,1.41339022,2043.2,2042.8,0.49359106]
[1773122498517,0.45569711,2043.1,2042.8,0.49359106]
[1773122499398,1.67932877,2043.1,2042.8,0.49359106]
[1773122502922,0.45569711,2043.0,2042.8,0.0011]
[1773122503098,1.22363166,2043.1,2042.8,0.49359106]
[1773122503598,1.67932877,2043.1,2042.8,0.49359106]
[1773122504212,0.45569711,2043.2,2042.8,0.49359106]
[1773122504414,3.11420998,2043.3,2042.9,0.49249106]
[1773122504805,0.45569711,2043.2,2042.9,0.49249106]
[1773122505009,0.45569711,2043.2,2042.8,0.0011]
[1773122505818,0.45569711,2043.2,2043.1,0.0011]
[1773122506019,0.45569711,2043.2,2042.8,0.0011]
[1773122506316,1.67929291,2043.2,2042.8,0.0011]
[1773122506519,0.45569711,2043.1,2042.9,0.0011]
[1773122507222,0.45569711,2043.1,2042.8,0.0011]
[1773122507422,0.45569711,2043.1,2042.8,0.49359106]
[1773122507624,1.2235958,2043.2,2042.8,0.49359106]
[1773122507807,3.11425677,2043.3,2042.8,0.49359106]
[1773122509707,0.45569711,2043.2,2042.8,0.49359106]
[1773122511438,0.45569711,2043.1,2042.8,0.0011]
[1773122512013,0.45569711,2043.1,2042.8,0.49359106]
[1773122513137,0.45569711,2043.1,2042.8,0.0011]
[1773122513435,0.45569711,2043.1,2042.8,0.49359106]
[1773122514738,1.2236365,2043.1,2042.8,0.49359106]
[1773122514924,6.32928347,2043.3,2042.8,0.49359106]
[1773122514925,1.2236142,2043.2,2042.9,0.4965275]
[1773122515657,1.70427948,2043.2,2042.9,0.4965275]
[1773122519369,1.70427948,2043.2,2043.0,0.0011]
[1773122519839,0.001,2043.1,2043.0,0.4976275]
[1773122520038,1.439,2043.3,2043.1,0.4965275]
[1773122520343,0.48166528,2043.4,2043.1,0.4965275]
[1773122520507,0.001,2043.4,2043.1,0.4965275]
[1773122520707,0.001,2043.6,2043.1,0.4965275]
[1773122521423,0.001,2043.6,2043.3,0.4965275]
[1773122522620,1.437,2044.2,2043.2,2.18256921]
[1773122522621,3.14063973,2044.2,2043.4,0.4965275]
[1773122523445,3.14063973,2044.2,2043.6,0.46951871]
[1773122524647,1.70363925,2044.2,2043.6,0.46951871]
[1773122524849,1.71940568,2044.3,2043.6,0.46951871]
[1773122525242,1.7193937,2044.3,2043.6,0.46951871]
[1773122525417,1.7193937,2044.3,2043.8,0.46951871]
[1773122525617,0.49645812,2044.2,2043.4,0.46951871]
[1773122526054,0.49645812,2043.9,2043.4,0.46951871]
[1773122527045,0.49645812,2044.2,2043.4,0.46951871]
[1773122527234,1.438,2044.1,2043.4,0.46951871]
[1773122527440,0.49645812,2044.0,2043.4,0.46951871]
[1773122530062,1.22315181,2043.9,2043.4,0.46951871]
[1773122530237,1.71960993,2043.9,2043.4,0.46951871]
[1773122530426,0.49645812,2043.8,2043.4,0.46951871]
[1773122531765,0.49645812,2043.8,2043.6,0.0011]
[1773122532066,1.71972016,2043.8,2043.6,0.0011]
[1773122533333,0.001,2044.0,2043.6,0.47061871]
[1773122533334,1.7205572,2044.0,2043.6,0.47061871]
[1773122536768,0.49645812,2043.9,2043.6,0.0011]
[1773122538167,0.49645812,2043.9,2043.4,0.0011]
[1773122538369,0.49645812,2043.9,2043.1,0.47061871]
[1773122538544,0.49645812,2043.6,2043.1,0.0011]
[1773122538938,1.22327151,2043.7,2043.1,0.0011]
[1773122538939,1.22327151,2043.7,2043.1,0.47061871]
[1773122539267,1.7196108,2043.9,2043.1,0.47061871]
[1773122541654,1.7196108,2043.9,2043.3,0.46951871]
[1773122541968,1.22315268,2043.9,2043.3,0.46951871]
[1773122542170,0.49645812,2043.8,2043.3,0.46951871]
[1773122544238,0.49645812,2043.8,2043.5,0.0011]
[1773122544692,0.49645812,2043.8,2043.5,0.47061871]
[1773122544847,1.72059782,2044.0,2043.5,0.47061871]
[1773122545047,0.49645812,2043.9,2043.5,0.47061871]
[1773122546445,1.7196509,2043.9,2043.5,0.47061871]
[1773122546647,1.71933822,2044.4,2043.7,0.46951871]
[1773122546858,0.49745812,2044.2,2043.7,0.46951871]
[1773122547664,0.49645812,2044.0,2043.7,0.46951871]
[1773122548060,0.49645812,2044.3,2043.7,0.46951871]
[1773122548379,0.49745812,2044.3,2043.7,0.46951871]
[1773122550291,0.49645812,2044.1,2043.7,0.46951871]
[1773122550854,0.49645812,2044.1,2043.7,1.69278779]
[1773122551180,0.49645812,2044.1,2043.7,0.46951871]
[1773122551886,0.49645812,2044.1,2043.7,1.69278337]
[1773122553179,0.001,2044.0,2043.7,1.69278337]
[1773122554979,0.001,2044.0,2043.8,0.48326776]
[1773122555589,0.001,2044.0,2043.9,0.48326776]
[1773122556676,1.71686469,2044.3,2043.9,0.48326776]
[1773122557391,1.716879,2044.3,2043.9,0.48326776]
[1773122559084,1.71686457,2044.3,2043.9,0.48326776]
[1773122561088,0.001,2044.2,2043.9,0.48326776]
[1773122562393,0.49495012,2044.2,2043.9,0.48326776]
[1773122562567,1.222916,2044.3,2043.9,0.48326776]
[1773122562891,0.001,2044.2,2043.9,0.48326776]
[1773122564257,0.49495012,2044.2,2043.9,0.48326776]
[1773122567702,0.001,2044.1,2043.9,0.48326776]
[1773122569390,0.001,2044.1,2043.9,0.48436776]
[1773122572077,0.49395012,2044.2,2043.9,0.48436776]
[1773122572304,0.001,2044.1,2043.9,0.48436776]
[1773122573205,0.001,2044.1,2044.0,0.47216381]
[1773122576400,0.47679443,2044.4,2044.0,0.47216381]
[1773122576598,0.001,2044.3,2044.0,0.47216381]
[1773122577912,0.47779443,2044.3,2044.0,0.47216381]
[1773122580417,1.69976674,2044.2,2043.9,0.47326381]
[1773122580603,0.47679443,2043.9,2043.7,0.0011]
[1773122581614,0.001,2043.8,2043.7,0.0011]
[1773122581818,0.47779443,2043.8,2043.7,0.0011]
[1773122582119,0.001,2043.8,2043.7,0.0011]
[1773122583316,0.47779443,2043.8,2043.7,0.0011]
[1773122586816,0.47679443,2043.8,2043.7,0.0011]
[1773122587118,0.001,2043.8,2043.7,0.0011]
[1773122588304,0.4652974,2043.9,2043.7,0.0011]
[1773122588512,0.001,2043.8,2043.7,0.0011]
[1773122597122,0.001,2043.8,2043.7,0.49100192]
[1773122597696,0.001,2044.1,2043.8,0.48990192]
[1773122600226,1.68933857,2044.1,2043.8,0.48990192]
[1773122602425,1.68933857,2044.1,2043.8,1.71311139]
[1773122602426,0.001,2044.1,2043.8,1.71311139]
[1773122602730,0.001,2044.1,2043.8,0.48990192]
[1773122603197,0.001,2044.1,2043.8,1.71308683]
[1773122603607,0.001,2044.1,2043.8,0.48990192]
[1773122604436,0.001,2044.1,2043.9,0.48990192]
[1773122606944,0.001,2044.1,2044.0,0.0011]
[1773122607139,0.001,2044.1,2044.0,0.49100192]
[1773122607337,6.49,2044.2,2044.1,0.48990192]
[1773122607876,3.13319204,2044.4,2044.1,0.48990192]
[1773122611249,3.13319204,2044.4,2044.0,0.0011]
[1773122611250,0.4652974,2044.3,2044.0,0.0011]
[1773122612164,0.4652974,2044.3,2044.1,0.1]
[1773122614171,1.71776802,2044.4,2044.1,0.56447899]
[1773122617488,0.49487338,2044.4,2044.1,0.56447899]
[1773122617685,1.71774052,2044.4,2044.1,0.56447899]
[1773122617984,1.71774052,2044.4,2044.1,0.1]
[1773122619278,1.71774052,2044.4,2044.3,0.001]
[1773122619979,1.71974052,2044.4,2044.3,0.001]
[1773122625091,0.002,2044.4,2044.3,0.001]
[1773122625260,0.002,2044.4,2044.3,0.46547899]
[1773122627389,0.002,2044.4,2044.3,0.001]
[1773122628411,0.002,2044.4,2044.3,0.46547899]
[1773122630107,0.002,2044.4,2044.3,0.001]
[1773122630611,0.002,2044.4,2044.3,0.47570323]
[1773122637028,0.002,2044.4,2044.3,1.69861571]
[1773122638211,0.002,2044.4,2044.3,0.47570323]
[1773122639810,0.002,2044.7,2044.4,0.47470323]
[1773122642716,0.002,2044.7,2044.4,1.69753873]
[1773122643431,0.45476086,2044.7,2044.4,0.47470323]
[1773122643728,0.45476086,2044.7,2044.3,0.001]
[1773122643729,0.002,2044.4,2044.3,0.001]
[1773122644239,1.42753773,2044.4,2044.0,0.0011]
[1773122644404,1.42753773,2044.4,2043.7,0.0011]
[1773122644405,0.46773243,2044.3,2043.7,0.47522446]
[1773122644598,0.46773243,2044.3,2043.7,0.0011]
[1773122644599,0.46773243,2044.1,2043.7,0.0011]
[1773122644799,0.46773243,2043.9,2043.5,0.0011]
[1773122645740,9.84322001,2044.2,2043.6,0.47412446]
[1773122645741,0.46773243,2044.2,2043.6,0.47412446]
[1773122646506,0.46773243,2044.0,2043.6,0.47412446]
[1773122646730,0.46773243,2044.0,2043.6,1.69744944]
[1773122646936,0.46773243,2044.0,2043.7,0.47412446]
[1773122649749,0.46773243,2044.0,2043.7,1.69738696]
[1773122649925,3.14964789,2044.3,2043.8,0.47412446]
[1773122650322,0.46773243,2044.2,2043.8,0.47412446]
[1773122650817,0.46773243,2044.3,2043.8,0.47412446]
[1773122651023,0.002,2044.4,2043.8,0.47412446]
[1773122651254,1.6926014,2044.4,2043.8,0.47412446]
[1773122651733,1.6926014,2044.4,2044.0,0.47412446]
[1773122652521,0.002,2044.4,2044.0,0.47412446]
[1773122653348,0.002,2044.7,2044.1,0.47412446]
[1773122653710,0.002,2044.7,2044.3,0.47412446]
[1773122653910,0.46973243,2044.7,2044.3,0.47412446]
[1773122655747,1.69243737,2044.7,2044.3,0.47412446]
[1773122655946,0.002,2044.5,2044.2,1.22297231]
[1773122656158,0.46973243,2044.5,2044.1,0.47412446]
[1773122656825,0.46973243,2044.5,2044.0,0.47412446]
[1773122657049,0.46973243,2044.5,2043.8,1.69829345]
[1773122657346,0.46973243,2044.5,2043.9,0.47412446]
[1773122658745,0.46773243,2044.4,2044.0,1.22309197]
[1773122659842,0.46773243,2044.4,2044.0,0.47412446]
[1773122661249,0.46773243,2044.3,2044.0,0.47412446]
[1773122662519,0.46773243,2044.3,2043.9,1.22311652]
[1773122663242,1.69068407,2044.3,2043.8,1.6983329]
[1773122663445,0.46773243,2044.2,2043.8,1.6983329]
[1773122664712,0.46773243,2044.2,2043.8,0.001]
[1773122665318,0.46773243,2044.1,2043.8,0.001]
[1773122665824,0.46773243,2044.1,2043.8,0.47512446]
[1773122667644,0.46773243,2044.1,2043.8,1.6983302]
[1773122667845,0.46773243,2044.1,2043.8,0.47512446]
[1773122668046,0.46773243,2044.1,2044.0,0.0011]
[1773122671038,0.46773243,2044.1,2043.8,0.47412446]
[1773122676529,0.46773243,2044.1,2043.5,0.0011]
[1773122676530,0.47533044,2043.8,2043.5,0.0011]
[1773122676758,0.47533044,2043.8,2043.4,0.45678999]
[1773122677446,0.47533044,2043.7,2043.4,0.45678999]
[1773122677848,0.47533044,2043.7,2043.4,1.68023739]
[1773122678670,0.47533044,2043.7,2043.4,0.0011]
[1773122678856,0.47533044,2043.7,2043.4,0.45678999]
[1773122679763,0.47533044,2043.7,2043.6,0.0011]
[1773122683782,0.47533044,2043.6,2043.3,0.0011]
[1773122684968,0.47533044,2043.5,2043.3,0.0011]
[1773122691977,0.45465163,2043.4,2043.3,0.0011]
[1773122692449,0.45465163,2043.5,2043.3,0.0011]
[1773122693256,0.9587524,2043.7,2043.3,0.47787326]
[1773122693457,0.001,2043.9,2043.3,0.47787326]
[1773122693865,0.001,2043.9,2043.4,1.22345111]
[1773122694069,0.001,2043.9,2043.5,0.47677326]
[1773122695979,0.001,2043.9,2043.6,0.47677326]
[1773122696384,0.45565163,2043.9,2043.6,0.47677326]
[1773122698187,0.45565163,2043.9,2043.6,1.70010091]
[1773122698878,0.45565163,2043.9,2043.6,0.47677326]
[1773122699286,0.45565163,2043.9,2043.6,1.70009916]
[1773122699481,0.45565163,2043.9,2043.6,0.47677326]
[1773122700892,0.45565163,2043.9,2043.6,1.70010433]
[1773122701276,0.45565163,2043.9,2043.6,0.47677326]
[1773122702299,0.45565163,2043.9,2043.6,1.70009933]
[1773122702896,0.45565163,2043.9,2043.6,0.47677326]
[1773122704294,0.001,2043.7,2043.6,0.47677326]
[1773122704795,0.001,2043.7,2043.5,0.46618393]
[1773122704962,0.001,2043.7,2043.5,1.68957078]
[1773122707194,0.49295739,2043.7,2043.5,0.0011]
[1773122708202,0.001,2043.9,2043.6,0.46508393]
[1773122708697,0.49295739,2043.9,2043.6,0.46508393]
[1773122709900,0.49295739,2043.9,2043.5,0.28554255]
[1773122710089,0.49295739,2043.9,2043.5,1.50890427]
[1773122713992,0.001,2043.9,2043.6,0.28553104]
[1773122716007,0.001,2043.9,2043.6,1.50991851]
[1773122716208,0.001,2043.7,2043.6,1.50991851]
[1773122720036,0.001,2043.9,2043.7,0.28451474]
[1773122720326,0.001,2043.9,2043.8,0.28451474]
[1773122720529,0.001,2043.9,2043.7,1.50772953]
[1773122726027,0.001,2043.9,2043.7,0.28451474]
[1773122726411,0.001,2043.9,2043.7,1.50777735]
[1773122728431,0.001,2043.9,2043.8,0.0011]
[1773122742544,0.48016811,2043.9,2043.8,0.0011]
[1773122744152,0.001,2043.9,2043.8,0.0011]
[1773122747652,0.48016811,2043.9,2043.8,0.0011]
[1773122750528,0.001,2043.9,2043.8,0.0011]
[1773122750730,0.48116811,2044.2,2043.8,0.28554639]
[1773122750964,0.002,2044.5,2044.1,0.28444457]
[1773122751237,0.48116811,2044.5,2044.1,0.28444457]
[1773122751450,0.002,2044.5,2044.1,0.28444457]
[1773122753063,0.002,2044.5,2044.2,1.50741154]
[1773122753646,0.002,2044.5,2044.3,0.28443923]
[1773122755637,0.002,2044.5,2044.3,1.50730798]
[1773122757176,0.002,2044.5,2044.3,1.22286875]
[1773122757668,0.4921117,2044.5,2044.3,1.22286875]
[1773122758441,0.002,2044.5,2044.3,1.50729947]
[1773122758640,0.002,2044.5,2044.4,0.28443072]
[1773122760650,0.4921117,2044.5,2044.2,1.2229265]
[1773122763679,0.4921117,2044.5,2044.2,1.50734764]
[1773122767885,0.4921117,2044.5,2044.4,0.001]
[1773122770458,0.002,2044.7,2044.4,1.50826345]
[1773122770752,0.002,2044.7,2044.5,0.28441078]
[1773122771783,0.002,2044.7,2044.4,1.22385267]
[1773122772086,0.46330452,2044.7,2044.4,1.22385267]
[1773122772250,0.46330452,2044.7,2044.2,0.28540796]
[1773122772251,0.46330452,2044.7,2044.2,0.001]
[1773122772456,0.46130452,2044.3,2043.8,0.0011]
[1773122772656,0.46130452,2044.3,2043.8,1.22430701]
[1773122774461,0.46130452,2044.2,2043.8,1.22430701]
[1773122775166,0.46130452,2044.2,2043.8,0.0011]
[1773122777094,0.46130452,2044.1,2043.8,0.0011]
[1773122781176,0.46130452,2044.0,2043.8,0.0011]
[1773122784472,0.46230452,2044.3,2043.8,0.28759239]
[1773122785684,0.46230452,2044.3,2043.9,0.28649119]
[1773122785685,0.46130452,2044.2,2043.9,0.28649119]
[1773122786000,0.46130452,2044.2,2043.8,0.0011]
[1773122786972,0.46130452,2044.1,2043.8,0.0011]
[1773122789109,0.46130452,2044.0,2043.8,0.0011]
[1773122790307,1.22301265,2044.2,2043.8,0.28758538]
[1773122790490,1.68431717,2044.2,2043.8,0.28758538]
[1773122790812,0.46130452,2044.1,2043.8,0.28758538]
[1773122792194,0.46130452,2044.1,2043.8,1.51078151]
[1773122792394,0.46130452,2044.1,2043.8,0.28758538]
[1773122792792,0.46130452,2044.1,2043.8,1.51075722]
[1773122793982,0.46130452,2044.1,2044.0,0.001]
[1773122794813,0.45542019,2044.2,2044.0,0.001]
[1773122794996,0.002,2044.2,2044.0,0.28747884]
[1773122795397,0.45342019,2044.1,2043.8,0.0011]
[1773122795596,0.45342019,2044.1,2043.7,0.001]
[1773122795997,1.67651216,2044.0,2043.7,0.001]
[1773122796207,0.45342019,2043.9,2043.7,0.001]
[1773122796923,1.22309197,2044.0,2043.5,0.0011]
[1773122796924,0.45342019,2043.7,2043.5,0.0011]
[1773122798788,0.45342019,2044.1,2043.5,0.28757472]
[1773122798989,0.45342019,2044.0,2043.5,0.28757472]
[1773122800011,1.22314111,2044.0,2043.5,1.51096259]
[1773122800214,0.45342019,2043.9,2043.5,1.51096259]
[1773122801420,0.45342019,2043.9,2043.5,0.0011]
[1773122802424,0.45342019,2043.8,2043.5,0.0011]
[1773122803725,0.45342019,2043.8,2043.5,0.28757079]
[1773122804529,1.67664363,2043.8,2043.5,0.28757079]
[1773122804749,0.45342019,2043.7,2043.5,0.0011]
[1773122807501,1.2252041,2043.9,2043.5,0.0011]
[1773122807502,0.45342019,2043.8,2043.5,0.0011]
[1773122807829,0.45342019,2043.8,2043.5,0.28756704]
[1773122809035,1.67663478,2043.8,2043.5,0.28756704]
[1773122809201,0.45342019,2043.7,2043.5,0.0011]
[1773122813843,0.45542019,2043.9,2043.5,0.28756173]
[1773122814003,0.002,2043.9,2043.6,0.28646003]
[1773122814208,0.002,2044.1,2043.6,0.28446003]
[1773122815326,0.46500012,2044.1,2043.6,0.28446003]
[1773122816030,0.46500012,2044.1,2043.8,0.28445838]
[1773122819442,0.46500012,2044.1,2043.8,1.50763252]
[1773122820739,0.46500012,2044.1,2043.8,1.22317414]
[1773122821046,0.001,2043.9,2043.8,1.22317414]
[1773122822244,0.001,2043.9,2043.7,1.50878919]
[1773122823645,0.001,2043.9,2043.8,0.28445214]